bitfinex-derivatives/quotes_SOLF0:USTF0_20250516
["timestamp","ask_amount","ask_price","bid_price","bid_amount"]
[1747435700443,127.56,167.12,167.04,69.7532]
[1747435700745,127.56,167.12,167.04,65.807]
[1747435700947,127.56,167.12,167.01,63.76]
[1747435701244,5.9845,167.05,167.01,69.7456]
[1747435701443,64.12,167.06,166.98,3.9611]
[1747435701946,5.9845,167.05,167.01,5.9856]
[1747435702138,63.74,167.04,166.93,63.74]
[1747435702341,5.9857,167.02,166.93,64.93810699]
[1747435702545,64.6,167.01,166.93,64.93810699]
[1747435703445,64.6,167.01,166.94,1.19803522]
[1747435704351,64.6,167.01,166.98,5.9866]
[1747435704854,64.6,167.01,166.94,1.19803522]
[1747435705150,64.78,167.04,166.94,1.19803522]
[1747435705351,64.78,167.04,167.0,5.9859]
[1747435705547,64.78,167.04,166.94,1.19803522]
[1747435705953,70.765,167.04,166.99,5.9864]
[1747435706143,64.78,167.04,166.94,1.19803522]
[1747435706453,64.78,167.04,166.97,5.9872]
[1747435706751,64.78,167.04,166.94,1.19803522]
[1747435707054,70.765,167.04,166.99,5.9865]
[1747435708958,64.78,167.04,166.98,5.9868]
[1747435709151,64.78,167.04,166.94,1.19803522]
[1747435709458,5.9857,167.02,166.97,5.9869]
[1747435709756,5.9857,167.02,166.94,1.19803522]
[1747435710156,5.9852,167.03,166.94,1.19803522]
[1747435710350,64.78,167.04,166.94,1.19803522]
[1747435710547,5.9855,167.02,166.97,5.987]
[1747435710761,5.9855,167.02,166.94,1.19803522]
[1747435711056,64.78,167.04,166.94,1.19803522]
[1747435711257,5.986,167.01,166.94,1.19803522]
[1747435711657,5.986,167.01,166.93,63.74]
[1747435711954,5.9862,167.0,166.96,5.9875]
[1747435712156,5.9862,167.0,166.93,63.74]
[1747435712157,65.76,167.0,166.93,63.74]
[1747435712860,71.7464,167.0,166.95,5.9877]
[1747435713062,65.76,167.0,166.95,5.9877]
[1747435713562,71.7463,167.0,166.95,5.9877]
[1747435713763,65.76,167.0,166.93,63.74]
[1747435714663,71.7462,167.0,166.96,5.9874]
[1747435715159,71.7462,167.0,166.96,5.9873]
[1747435715660,5.9867,166.99,166.93,63.74]
[1747435715961,65.76,167.0,166.93,63.74]
[1747435716262,5.9868,166.99,166.95,5.9877]
[1747435716563,5.9868,166.99,166.92,8.47506381]
[1747435716763,65.76,167.0,166.92,8.47506381]
[1747435717163,65.76,167.0,166.93,2.0596]
[1747435717466,65.76,167.0,166.96,5.9874]
[1747435717765,65.76,167.0,166.93,2.0596]
[1747435718765,65.76,167.0,166.98,5.9868]
[1747435718965,65.76,167.0,166.93,2.0596]
[1747435719366,65.76,167.0,166.97,5.9871]
[1747435720460,65.76,167.0,166.98,5.9869]
[1747435721364,65.76,167.0,166.93,2.0596]
[1747435721569,65.76,167.0,166.96,5.9876]
[1747435721868,65.76,167.0,166.93,2.0596]
[1747435722063,5.9867,166.99,166.95,5.9878]
[1747435722766,5.9867,166.99,166.96,5.9876]
[1747435723162,65.76,167.0,166.92,8.47506381]
[1747435724472,7.3875,167.02,166.92,8.47506381]
[1747435724667,68.32,167.01,166.92,8.47506381]
[1747435726467,1.9799,167.03,166.92,8.47506381]
[1747435726666,68.5,167.01,166.92,8.47506381]
[1747435726869,68.5,167.01,166.92,77.09506381]
[1747435727074,68.5,167.01,166.96,5.9873]
[1747435728574,74.4859,167.01,166.96,5.9873]
[1747435729169,74.4859,167.01,166.95,5.9879]
[1747435729374,5.9862,167.0,166.95,5.9879]
[1747435729677,68.5,167.01,166.92,77.09506381]
[1747435729874,68.5,167.01,166.96,5.9876]
[1747435730075,68.5,167.01,166.92,77.09506381]
[1747435730276,68.5,167.01,166.97,5.9871]
[1747435730684,5.9856,167.02,166.92,77.09506381]
[1747435730877,68.6199,167.03,166.92,77.09506381]
[1747435731077,138.0599,167.03,166.92,77.09506381]
[1747435731479,144.045,167.03,166.99,5.9864]
[1747435732278,138.0599,167.03,166.99,5.9864]
[1747435732575,138.0599,167.03,166.92,77.09506381]
[1747435732779,136.08,167.03,167.0,5.9862]
[1747435733472,66.64,167.03,166.96,69.42]
[1747435733675,69.24,167.05,166.96,69.42]
[1747435733981,69.24,167.05,167.02,5.9851]
[1747435735183,69.24,167.05,167.03,5.985]
[1747435736483,69.04,167.06,166.97,73.2454]
[1747435736778,69.04,167.06,166.96,69.42]
[1747435737982,5.9849,167.04,167.0,5.986]
[1747435738381,5.9849,167.04,167.0,5.9858]
[1747435738579,69.04,167.06,166.96,69.42]
[1747435739081,69.04,167.06,166.98,5.9866]
[1747435739082,5.9857,167.02,166.98,5.9866]
[1747435739279,69.26,167.01,166.96,69.42]
[1747435739674,75.246,167.01,166.96,69.42]
[1747435740271,69.26,167.01,166.93,1.9976]
[1747435740485,138.68,167.01,166.92,8.47506381]
[1747435740786,5.9868,166.99,166.95,5.9879]
[1747435740988,138.68,167.01,166.92,8.47506381]
[1747435741283,138.68,167.01,166.95,5.9876]
[1747435741483,138.68,167.01,166.92,8.47506381]
[1747435741677,144.66,167.01,166.81,1.04254044]
[1747435741882,10.33337719,166.95,166.72,10.33337719]
[1747435742081,142.1611,166.94,166.72,10.33337719]
[1747435742285,5.9912,166.86,166.81,5.9927]
[1747435742477,70.84,166.85,166.74,1.8868]
[1747435742676,70.84,166.85,166.75,1.19940029]
[1747435742882,76.8317,166.85,166.75,1.19940029]
[1747435743083,76.8317,166.85,166.74,1.8868]
[1747435743283,70.84,166.85,166.78,5.9938]
[1747435743482,5.9913,166.86,166.74,1.8868]
[1747435743684,140.2,166.84,166.76,5.9944]
[1747435744286,10.35309539,166.82,166.7,14.34544105]
[1747435744479,69.42,166.84,166.7,14.34544105]
[1747435744685,72.24,166.83,166.7,14.34544105]
[1747435744888,72.26,166.82,166.7,14.34544105]
[1747435745186,145.0,166.81,166.7,14.34544105]
[1747435745483,527.82062399,166.8,166.61,72.24]
[1747435745688,10.36214102,166.79,166.62,1.20033609]
[1747435745889,144.98,166.78,166.62,1.20033609]
[1747435746085,517.46,166.8,166.62,1.20033609]
[1747435746284,145.12,166.79,166.75,5.9948]
[1747435746485,145.12,166.79,166.66,72.26]
[1747435746682,517.46,166.8,166.67,1.8848]
[1747435746882,73.06,166.8,166.68,3.8566]
[1747435747086,73.04,166.81,166.68,3.8566]
[1747435747386,73.04,166.82,166.81,5.993]
[1747435747587,3.2619,166.85,166.74,72.26]
[1747435747890,73.22,166.87,166.86,5.9909]
[1747435748283,73.22,166.87,166.8,72.26]
[1747435748483,73.22,166.87,166.84,5.9916]
[1747435748690,73.22,166.87,166.8,72.26]
[1747435749088,73.22,166.87,166.82,5.9923]
[1747435749485,73.22,166.87,166.78,1.9585]
[1747435749681,73.22,166.87,166.72,72.28]
[1747435749890,5.9918,166.85,166.72,72.28]
[1747435750186,75.6756,166.84,166.72,72.28]
[1747435750387,73.68,166.84,166.72,72.28]
[1747435750788,73.68,166.84,166.83,5.9922]
[1747435751289,2.0458,166.89,166.86,5.9908]
[1747435751489,2.8177,166.93,166.83,72.28]
[1747435751685,73.66,166.92,166.83,72.28]
[1747435751886,2.0458,166.95,166.83,72.28]
[1747435752084,73.66,166.94,166.83,72.28]
[1747435752284,72.28,166.97,166.83,72.28]
[1747435752489,73.66,166.96,166.83,82.64214102]
[1747435752989,73.66,166.96,166.92,5.9888]
[1747435753184,73.66,166.96,166.88,72.28]
[1747435753390,73.66,166.96,166.89,72.28]
[1747435754291,73.66,166.96,166.91,5.989]
[1747435754589,79.6479,166.96,166.89,72.28]
[1747435754787,73.66,166.96,166.9,5.9894]
[1747435755084,79.6478,166.96,166.89,72.28]
[1747435755290,73.66,166.96,166.93,5.9883]
[1747435755685,73.66,166.96,166.89,72.28]
[1747435755892,73.66,166.96,166.93,5.9885]
[1747435756192,73.66,166.96,166.89,72.28]
[1747435756583,2.0458,166.99,166.89,72.28]
[1747435756893,74.41437338,167.0,166.89,72.28]
[1747435757085,74.41437338,167.0,166.9,5.8629]
[1747435757293,74.41437338,167.0,166.91,83.68214102]
[1747435757888,74.41437338,167.0,166.99,5.9865]
[1747435758089,74.41437338,167.0,166.95,72.26]
[1747435759091,74.41437338,167.0,166.9,5.8629]
[1747435759291,74.41437338,167.0,166.92,72.26]
[1747435760095,74.41437338,167.0,166.98,5.9867]
[1747435760495,74.41437338,167.0,166.92,72.26]
[1747435761494,80.40057338,167.0,166.94,5.988]
[1747435761701,74.41437338,167.0,166.92,72.26]
[1747435762095,74.41437338,167.0,166.95,5.9877]
[1747435762396,74.41437338,167.0,166.92,72.26]
[1747435762598,1.07437338,167.0,166.92,72.26]
[1747435763999,1.07437338,167.0,166.99,5.9865]
[1747435764295,1.07437338,167.0,166.92,72.26]
[1747435764693,1.07437338,167.0,166.99,5.9865]
[1747435767200,7.338e-05,167.0,166.99,5.9865]
[1747435767403,72.24,167.09,167.06,5.9837]
[1747435767404,144.82,167.09,167.06,5.9837]
[1747435767590,72.58,167.09,167.06,5.9837]
[1747435768602,645.6172886,167.12,167.06,5.9837]
[1747435768896,72.48,167.11,167.02,72.24]
[1747435769704,72.48,167.11,167.06,5.9838]
[1747435770299,78.4621,167.11,167.05,5.9842]
[1747435770601,78.4621,167.11,167.02,72.24]
[1747435771393,78.4621,167.11,167.05,5.9839]
[1747435771898,78.4621,167.11,167.06,5.9838]
[1747435772100,72.48,167.11,167.06,5.9838]
[1747435772498,72.48,167.11,167.02,72.24]
[1747435772698,78.4621,167.11,167.02,72.24]
[1747435772902,72.48,167.11,167.02,72.24]
[1747435773299,72.48,167.11,167.07,5.9832]
[1747435774399,72.48,167.11,167.02,72.24]
[1747435775302,72.48,167.11,167.07,5.9834]
[1747435776104,121.9753886,167.12,167.08,5.9831]
[1747435776401,127.9571886,167.12,167.02,72.24]
[1747435776602,127.9571886,167.12,167.06,5.9838]
[1747435776805,199.4971886,167.12,167.02,72.24]
[1747435777101,199.4971886,167.12,167.07,5.9834]
[1747435778101,127.9571886,167.12,167.07,5.9834]
[1747435778304,199.3771886,167.12,167.07,5.9834]
[1747435778699,199.3771886,167.12,167.02,72.24]
[1747435779200,193.3953886,167.12,167.04,5.9846]
[1747435779407,193.3953886,167.12,167.02,72.24]
[1747435780005,193.3953886,167.12,167.07,5.9834]
[1747435780410,199.3771886,167.12,167.07,5.9834]
[1747435781005,193.3953886,167.12,167.06,5.9839]
[1747435781210,5.9823,167.11,167.06,5.9839]
[1747435781810,77.4019,167.12,167.02,72.24]
[1747435782009,71.42,167.12,167.02,72.24]
[1747435783012,71.42,167.12,167.08,5.9829]
[1747435783313,71.42,167.12,167.02,72.24]
[1747435783512,73.4814,167.12,167.02,72.24]
[1747435783707,2.7995,167.11,167.02,72.24]
[1747435784403,5.9833,167.08,167.02,72.24]
[1747435784602,70.76,167.08,167.02,72.24]
[1747435786711,70.76,167.08,167.06,5.9838]
[1747435786904,70.76,167.08,167.02,72.24]
[1747435787303,8.0434,167.12,167.07,5.9836]
[1747435787506,70.48,167.11,167.07,5.9836]
[1747435788908,70.48,167.11,167.06,5.9839]
[1747435789311,70.48,167.11,167.02,72.24]
[1747435789615,70.48,167.11,167.01,71.7]
[1747435790516,5.9835,167.08,167.01,71.7]
[1747435791016,5.9835,167.08,167.03,5.9847]
[1747435791214,5.9838,167.07,167.03,5.9847]
[1747435791415,70.2,167.06,167.01,71.7]
[1747435791612,70.2,167.06,167.02,5.9852]
[1747435792117,70.2,167.06,166.98,2.0315]
[1747435792618,70.2,167.06,167.03,5.9848]
[1747435793120,70.2,167.06,167.01,5.9856]
[1747435793418,2.0614,167.12,167.01,5.9856]
[1747435793618,2.0614,167.12,166.98,2.0315]
[1747435793619,1.4011,167.07,166.94,1.9088]
[1747435793920,5.9852,167.03,166.94,1.9088]
[1747435794219,1.4011,167.07,166.94,1.9088]
[1747435794815,5.986,167.01,166.97,5.9868]
[1747435795020,10.32197464,167.06,166.86,11.9817]
[1747435795323,5.9874,166.97,166.93,5.9883]
[1747435795620,1.9619,167.0,166.87,1.19853778]
[1747435795816,5.9881,166.95,166.91,5.9891]
[1747435796010,10.32197464,166.98,166.87,1.19853778]
[1747435796507,10.32197464,166.98,166.87,7.18923778]
[1747435796710,10.32197464,166.98,166.87,1.19853778]
[1747435796907,5.9883,166.94,166.9,5.9895]
[1747435797110,2.8009,166.99,166.87,1.19853778]
[1747435797720,5.9873,166.97,166.93,5.9886]
[1747435798020,2.8009,166.99,166.93,5.9886]
[1747435798221,5.9869,166.98,166.94,5.988]
[1747435798722,2.8009,166.99,166.83,10.33582518]
[1747435799017,5.9874,166.97,166.93,5.9884]
[1747435799319,2.8009,166.99,166.83,10.33582518]
[1747435799516,5.9871,166.98,166.94,5.9882]
[1747435799917,1.9619,167.0,166.83,10.33582518]
[1747435800117,5.9866,166.99,166.83,10.33582518]
[1747435800422,1.9619,167.0,166.83,10.33582518]
[1747435800719,5.9872,166.97,166.93,5.9886]
[1747435800919,1.9619,167.0,166.93,5.9886]
[1747435801123,1.9619,167.0,166.87,10.33582518]
[1747435801323,5.9864,167.0,166.88,5.9874]
[1747435801523,2.8041,167.04,166.88,5.9874]
[1747435801823,5.9875,166.97,166.92,5.9889]
[1747435802123,10.33582518,167.03,166.92,5.9889]
[1747435802327,5.9895,166.91,166.8,10.33582518]
[1747435802515,10.33582518,166.99,166.8,10.33582518]
[1747435802516,10.33582518,166.99,166.81,5.8224]
[1747435802822,1.9954,166.98,166.81,5.8224]
[1747435803013,5.9889,166.93,166.89,5.99]
[1747435803215,5.9889,166.93,166.81,5.8224]
[1747435803519,2.8086,166.97,166.81,5.8224]
[1747435804225,10.33582518,166.95,166.81,5.8224]
[1747435804520,5.9906,166.88,166.84,5.9916]
[1747435804815,10.33582518,166.91,166.81,2.0102]
[1747435805021,5.9911,166.87,166.83,5.992]
[1747435805220,1.9954,166.9,166.83,5.992]
[1747435805417,1.9954,166.9,166.73,5.8403]
[1747435805723,5.9917,166.85,166.81,5.9929]
[1747435806015,69.6,166.84,166.74,140.45947223]
[1747435806218,5.9932,166.81,166.74,70.85947223]
[1747435806418,139.28,166.84,166.74,70.85947223]
[1747435806613,5.9935,166.8,166.76,5.9945]
[1747435806818,5.9935,166.8,166.77,1.19925646]
[1747435807017,10.35252117,166.87,166.77,1.19925646]
[1747435807018,69.6,166.79,166.77,1.19925646]
[1747435807215,69.72,166.78,166.77,1.19925646]
[1747435807725,69.72,166.78,166.77,7.19365646]
[1747435807923,69.72,166.82,166.77,1.19925646]
[1747435809618,10.35040489,166.81,166.68,3.9798]
[1747435809824,11.75830489,166.81,166.68,3.9798]
[1747435810127,5.9946,166.77,166.72,5.9959]
[1747435810418,10.36070044,166.73,166.57,1.04397912]
[1747435810614,10.36070044,166.69,166.52,73.7127]
[1747435810819,144.98,166.68,166.52,73.7127]
[1747435811522,144.98,166.67,166.49,72.48]
[1747435811723,145.0,166.66,166.5,2.0366]
[1747435811921,72.52,166.65,166.5,2.0366]
[1747435812118,72.46,166.66,166.5,2.0366]
[1747435812313,72.48,166.65,166.5,2.0366]
[1747435812519,144.98,166.64,166.49,3.9305]
[1747435812727,72.46,166.64,166.5,146.9326]
[1747435813225,72.5,166.71,166.54,10.36849198]
[1747435813429,72.72,166.7,166.55,145.24]
[1747435813723,145.28,166.71,166.55,145.24]
[1747435813924,72.78,166.71,166.55,145.24]
[1747435814121,145.42,166.74,166.59,10.36233431]
[1747435814322,145.42,166.74,166.6,151.2268]
[1747435814323,72.9,166.73,166.6,151.2268]
[1747435814922,72.9,166.73,166.69,5.997]
[1747435815426,72.9,166.73,166.6,5.8068]
[1747435816828,10.36233431,166.7,166.6,3.8742]
[1747435817028,5.9977,166.68,166.56,517.92]
[1747435817230,74.54,166.67,166.56,517.92]
[1747435817427,74.54,166.67,166.55,72.54]
[1747435817628,16.85725599,166.65,166.51,5.9438]
[1747435817828,75.38,166.64,166.51,5.9438]
[1747435818123,76.32,166.63,166.51,5.9438]
[1747435818326,76.42,166.62,166.51,5.9438]
[1747435819124,75.38,166.64,166.51,5.9438]
[1747435819316,76.54,166.65,166.53,16.85725599]
[1747435819519,76.54,166.65,166.54,152.38]
[1747435820829,82.539,166.65,166.58,6.0009]
[1747435821025,76.54,166.65,166.52,75.42]
[1747435821231,76.54,166.65,166.48,518.06]
[1747435821525,76.54,166.65,166.49,3.8976]
[1747435821731,76.54,166.65,166.5,77.9]
[1747435821930,82.539,166.65,166.59,6.0006]
[1747435822833,5.9991,166.64,166.58,6.0012]
[1747435823031,76.54,166.65,166.55,75.42]
[1747435823730,153.14,166.68,166.56,1.8917]
[1747435824232,153.14,166.68,166.57,3.8559]
[1747435824630,153.14,166.68,166.62,5.9995]
[1747435824631,159.1377,166.68,166.62,5.9995]
[1747435824827,153.14,166.68,166.59,75.42]
[1747435825032,153.14,166.68,166.57,79.2759]
[1747435825237,75.4,166.68,166.57,79.2759]
[1747435825530,77.64,166.7,166.57,79.2759]
[1747435825731,77.6,166.69,166.64,5.999]
[1747435825930,77.6,166.69,166.57,79.2759]
[1747435826432,77.6,166.69,166.57,3.8559]
[1747435826930,77.6,166.69,166.6,6.0002]
[1747435827133,77.6,166.69,166.57,3.8559]
[1747435827336,6.0001,166.62,166.57,3.8559]
[1747435827531,77.62,166.64,166.57,3.8559]
[1747435827833,16.85725599,166.63,166.53,75.42]
[1747435828133,16.85725599,166.63,166.51,1.9016]
[1747435828335,16.85725599,166.61,166.51,1.9016]
[1747435828536,78.4,166.6,166.51,1.9016]
[1747435828735,79.42,166.59,166.51,1.9016]
[1747435829337,78.4,166.64,166.51,80.3016]
[1747435830740,5.9999,166.62,166.55,6.002]
[1747435830938,5.9999,166.62,166.51,80.3016]
[1747435830939,78.4,166.64,166.51,80.3016]
[1747435831840,6.0004,166.61,166.54,6.0024]
[1747435832031,6.0004,166.61,166.51,80.3016]
[1747435832237,78.4,166.64,166.51,80.3016]
[1747435832940,6.0001,166.61,166.51,80.3016]
[1747435833142,78.4,166.64,166.51,80.3016]
[1747435833545,5.9998,166.62,166.55,6.002]
[1747435834234,78.4,166.64,166.51,80.3016]
[1747435834541,78.4,166.64,166.51,1.9016]
[1747435834842,78.4,166.64,166.52,78.42]
[1747435835239,6.0001,166.62,166.55,6.0022]
[1747435835441,78.4,166.64,166.52,78.42]
[1747435836342,6.0005,166.6,166.54,6.0026]
[1747435836544,78.4,166.64,166.52,78.42]
[1747435836945,95.25725599,166.64,166.52,78.42]
[1747435837343,95.25725599,166.64,166.53,6.0028]
[1747435837547,95.25725599,166.64,166.51,82.3016]
[1747435837548,95.25725599,166.64,166.51,1.9016]
[1747435837937,95.25725599,166.64,166.51,7.9051]
[1747435838438,16.85725599,166.55,166.47,8.47506381]
[1747435838640,164.12,166.54,166.47,8.47506381]
[1747435838942,170.1229,166.54,166.49,6.0042]
[1747435839144,164.12,166.54,166.49,6.0042]
[1747435839446,6.0033,166.53,166.48,6.0048]
[1747435839649,164.12,166.54,166.47,8.47506381]
[1747435840644,170.1229,166.54,166.47,8.47506381]
[1747435841045,6.0033,166.53,166.47,8.47506381]
[1747435841249,164.12,166.54,166.47,8.47506381]
[1747435842647,6.0042,166.5,166.47,8.47506381]
[1747435843049,164.12,166.54,166.47,8.47506381]
[1747435844252,6.0048,166.48,166.47,8.47506381]
[1747435844543,165.28,166.49,166.35,81.48]
[1747435844749,165.84,166.48,166.36,5.9249]
[1747435845151,84.36,166.48,166.36,5.9249]
[1747435845745,175.2036,166.52,166.36,5.9249]
[1747435845946,84.64,166.52,166.36,5.9249]
[1747435846546,84.64,166.56,166.39,10.39221601]
[1747435846745,84.42,166.55,166.4,169.06]
[1747435847551,6.0036,166.52,166.4,169.06]
[1747435847748,84.42,166.55,166.4,169.06]
[1747435848554,10.39221601,166.53,166.36,90.5649]
[1747435848747,10.39221601,166.53,166.4,6.0076]
[1747435848955,10.39221601,166.53,166.36,90.5649]
[1747435849351,16.89479416,166.51,166.36,90.5649]
[1747435849550,169.32,166.5,166.36,90.5649]
[1747435849749,169.32,166.5,166.36,5.9249]
[1747435850348,6.0072,166.42,166.36,5.9249]
[1747435850554,84.6,166.45,166.36,5.9249]
[1747435850749,6.0074,166.41,166.36,4.0244]
[1747435850943,169.24,166.45,166.32,1.9676]
[1747435851150,169.24,166.45,166.32,6.0082]
[1747435851350,6.0076,166.41,166.36,6.0091]
[1747435851550,169.24,166.45,166.32,90.4482]
[1747435851857,6.007,166.42,166.35,6.0092]
[1747435852153,16.89479416,166.48,166.32,107.34299416]
[1747435852350,169.42,166.47,166.33,169.42]
[1747435852543,84.76,166.46,166.32,4.0406]
[1747435852853,84.74,166.46,166.33,86.5707]
[1747435853050,84.74,166.46,166.43,6.0066]
[1747435853352,84.74,166.46,166.38,84.66]
[1747435853554,84.66,166.48,166.38,84.66]
[1747435853755,84.66,166.52,166.38,84.66]
[1747435854055,175.2836,166.52,166.47,6.0049]
[1747435854257,175.2836,166.52,166.43,84.66]
[1747435854452,169.28,166.52,166.48,6.0046]
[1747435855057,169.28,166.52,166.43,84.66]
[1747435855658,175.2836,166.52,166.47,6.0049]
[1747435855956,169.28,166.52,166.43,84.66]
[1747435856159,6.0038,166.51,166.47,6.0051]
[1747435856358,6.0038,166.51,166.43,84.66]
[1747435856555,169.28,166.52,166.43,84.66]
[1747435856759,175.2834,166.52,166.47,6.0049]
[1747435856958,169.28,166.52,166.4,5.7785]
[1747435857259,6.0042,166.5,166.4,5.7785]
[1747435857556,169.28,166.52,166.4,5.7785]
[1747435857758,6.0047,166.49,166.45,6.0058]
[1747435857958,169.28,166.52,166.4,3.8678]
[1747435858356,6.0044,166.5,166.45,6.0056]
[1747435858557,169.28,166.52,166.4,3.8678]
[1747435859059,175.2835,166.52,166.48,6.0048]
[1747435859260,169.28,166.52,166.48,6.0048]
[1747435859460,169.28,166.52,166.4,3.8678]
[1747435859754,90.6622,166.56,166.51,6.0036]
[1747435860062,84.66,166.56,166.53,6.0028]
[1747435860253,6.0013,166.58,166.46,84.66]
[1747435860458,85.66,166.58,166.47,2.0356]
[1747435860860,85.66,166.58,166.48,4.0063]
[1747435861053,85.58,166.62,166.49,85.62]
[1747435861258,6.0008,166.6,166.55,6.0021]
[1747435861458,1.20040813,166.61,166.52,84.66]
[1747435861754,160.2892722,166.88,166.6,16.85660798]
[1747435861951,16.85660798,166.83,166.61,176.0246]
[1747435862153,16.85660798,166.79,166.61,176.0246]
[1747435862355,86.12,166.78,166.61,176.0246]
[1747435862561,170.78,166.78,166.61,5.9646]
[1747435862760,5.9946,166.77,166.61,5.9646]
[1747435863063,1.19932837,166.76,166.62,170.72]
[1747435863259,1.19932837,166.76,166.66,5.998]
[1747435863856,18.05277179,166.76,166.61,84.64]
[1747435864163,1.19932837,166.76,166.61,84.64]
[1747435864368,1.19932837,166.76,166.66,5.998]
[1747435864558,1.19932837,166.76,166.61,84.64]
[1747435864864,1.19932837,166.76,166.62,102.56458248]
[1747435865058,1.19932837,166.76,166.61,84.64]
[1747435865059,86.85932837,166.76,166.63,84.64]
[1747435866164,86.85932837,166.76,166.59,518.92]
[1747435866364,86.85932837,166.76,166.6,87.76]
[1747435866562,92.85442837,166.76,166.61,16.84263538]
[1747435866763,86.85932837,166.76,166.6,87.76]
[1747435867565,5.9955,166.74,166.66,5.9982]
[1747435867764,86.85932837,166.76,166.6,87.76]
[1747435868161,86.85932837,166.76,166.59,518.92]
[1747435868367,16.84263538,166.73,166.57,91.5446]
[1747435868667,5.9991,166.64,166.56,6.0019]
[1747435869063,5.9991,166.64,166.52,96.4814]
[1747435869064,90.4,166.65,166.52,6.0814]
[1747435869765,90.4,166.65,166.53,6.0027]
[1747435870264,90.4,166.65,166.51,606.42]
[1747435870666,90.4,166.65,166.53,16.84263538]
[1747435870866,91.24,166.66,166.53,16.84263538]
[1747435871068,90.78,166.71,166.57,16.84263538]
[1747435871266,91.26,166.7,166.58,90.78]
[1747435871463,91.26,166.7,166.59,2.0091]
[1747435871767,91.32,166.69,166.59,2.0091]
[1747435872165,5.9983,166.67,166.59,2.0091]
[1747435872364,91.32,166.69,166.59,2.0091]
[1747435872567,5.997,166.7,166.6,91.3]
[1747435872767,91.3,166.73,166.6,91.3]
[1747435872968,91.3,166.73,166.61,16.84263538]
[1747435873871,5.9968,166.71,166.65,5.9985]
[1747435874060,5.9968,166.71,166.61,16.84263538]
[1747435874061,91.3,166.73,166.64,90.78]
[1747435874365,5.999,166.65,166.59,11.9378]
[1747435874560,1.19961612,166.72,166.59,5.9373]
[1747435874762,90.76,166.71,166.59,92.7691]
[1747435874966,1.19976004,166.7,166.59,90.76]
[1747435875161,6.0,166.62,166.59,90.76]
[1747435875765,5.9993,166.64,166.59,90.76]
[1747435875973,92.5,166.66,166.59,90.76]
[1747435876171,92.5,166.66,166.6,16.84263538]
[1747435876472,93.57976004,166.7,166.6,16.84263538]
[1747435876772,7.19666004,166.7,166.61,1.9965]
[1747435876968,1.19976004,166.7,166.61,1.9965]
[1747435877371,1.19976004,166.7,166.68,5.9975]
[1747435877573,1.19976004,166.7,166.67,90.76]
[1747435877766,90.76,166.83,166.67,90.76]
[1747435878067,93.65889701,166.82,166.68,2.0029]
[1747435878275,1.19896888,166.81,166.68,2.0029]
[1747435878463,1.19896888,166.81,166.68,8.0002]
[1747435878667,1.19896888,166.81,166.68,2.0029]
[1747435879573,5.9969,166.7,166.66,5.9983]
[1747435879871,92.46,166.75,166.66,5.9983]
[1747435880073,1.19947223,166.74,166.65,90.76]
[1747435880272,5.9964,166.72,166.67,5.9979]